bitfinex-derivatives/quotes_BTCF0:USTF0_20241023
["timestamp","ask_amount","ask_price","bid_price","bid_amount"]
[1729700231758,0.075691,66108.0,66101.0,0.00226938]
[1729700231957,0.1609,66125.0,66101.0,0.00226938]
[1729700231958,0.17,66107.0,66101.0,0.00226938]
[1729700232165,0.075695,66104.0,66102.0,0.17]
[1729700232364,0.17,66111.0,66102.0,0.17]
[1729700232557,0.075696,66103.0,66102.0,0.17]
[1729700232756,0.075697,66102.0,66101.0,0.00226938]
[1729700234056,0.17,66103.0,66091.0,0.17]
[1729700234668,0.075706,66095.0,66091.0,0.17]
[1729700235169,0.075703,66097.0,66092.0,0.0423]
[1729700235359,0.075702,66098.0,66097.0,0.17]
[1729700237664,0.075692,66106.0,66097.0,0.17]
[1729700237866,0.1158,66111.0,66105.0,0.17]
[1729700238064,0.075669,66127.0,66093.0,0.17]
[1729700238065,0.075681,66117.0,66110.0,0.17]
[1729700238263,0.075681,66117.0,66116.0,0.17]
[1729700239062,0.1158,66126.0,66116.0,0.17]
[1729700239063,0.075659,66136.0,66116.0,0.62376]
[1729700239267,0.07566,66134.0,66133.0,0.17]
[1729700239472,0.1158,66139.0,66130.0,0.17]
[1729700239473,0.075664,66131.0,66130.0,0.17]
[1729700239776,0.075668,66128.0,66124.0,0.17]
[1729700240270,0.075661,66134.0,66121.0,0.26]
[1729700240463,0.075671,66125.0,66121.0,0.26]
[1729700240661,0.26,66135.0,66121.0,0.26]
[1729700240870,0.07567,66126.0,66121.0,0.26]
[1729700241465,0.26,66135.0,66121.0,0.26]
[1729700241664,0.075673,66124.0,66121.0,0.26]
[1729700242075,0.075673,66123.0,66121.0,0.71372]
[1729700242270,0.26,66135.0,66121.0,0.71372]
[1729700242271,0.075674,66122.0,66121.0,0.26]
[1729700242668,0.075674,66122.0,66121.0,0.71372]
[1729700243966,0.26,66135.0,66121.0,0.71372]
[1729700244184,0.075656,66138.0,66121.0,0.26]
[1729700244371,0.075656,66138.0,66127.0,0.26]
[1729700244372,0.09167788,66138.0,66127.0,0.26]
[1729700244574,0.075667,66128.0,66127.0,0.26]
[1729700245175,0.26,66137.0,66123.0,0.0451]
[1729700245378,0.075672,66124.0,66123.0,0.0451]
[1729700245876,0.075672,66124.0,66123.0,0.49878]
[1729700246588,0.26,66137.0,66123.0,0.49878]
[1729700246770,0.075669,66127.0,66125.0,0.26]
[1729700247873,0.01602188,66138.0,66125.0,0.26]
[1729700248075,0.26,66142.0,66125.0,0.26]
[1729700248269,0.075654,66140.0,66125.0,0.26]
[1729700248476,0.075655,66139.0,66125.0,0.26]
[1729700248778,0.2763691,66142.0,66125.0,0.26]
[1729700248990,0.1158,66141.0,66130.0,0.26]
[1729700249177,0.1158,66141.0,66123.0,0.0451]
[1729700249178,0.26,66137.0,66123.0,0.0451]
[1729700249374,0.07566,66135.0,66123.0,0.0451]
[1729700249585,0.26,66137.0,66123.0,0.0451]
[1729700249586,0.075672,66124.0,66123.0,0.0451]
[1729700249776,0.075659,66136.0,66123.0,0.49878]
[1729700249979,0.075671,66126.0,66123.0,0.0451]
[1729700250180,0.075665,66130.0,66123.0,0.0451]
[1729700250373,0.075665,66130.0,66129.0,0.26]
[1729700251583,0.075672,66124.0,66123.0,0.0451]
[1729700254187,0.07568,66117.0,66115.0,0.26]
[1729700254377,0.26,66129.0,66113.0,0.0474]
[1729700254378,0.075683,66114.0,66113.0,0.0474]
[1729700254574,0.075683,66114.0,66101.0,0.3072]
[1729700254790,0.075696,66103.0,66102.0,0.0931]
[1729700254974,0.075696,66103.0,66102.0,0.0474]
[1729700257990,0.075698,66101.0,66100.0,0.00226943]
[1729700262388,0.245698,66101.0,66100.0,0.00226943]
[1729700262785,0.075699,66100.0,66081.0,0.17]
[1729700263088,0.07571,66091.0,66084.0,0.17]
[1729700263396,0.17,66094.0,66084.0,0.17]
[1729700263582,0.17,66090.0,66080.0,0.2162]
[1729700263784,0.0434,66093.0,66072.0,0.17]
[1729700263785,0.17,66086.0,66072.0,0.17]
[1729700263989,0.075726,66077.0,66072.0,0.17]
[1729700264192,0.075721,66081.0,66076.0,0.17]
[1729700264400,0.075724,66079.0,66076.0,0.17]
[1729700264989,0.075725,66078.0,66076.0,0.17]
[1729700265991,0.01616724,66082.0,66076.0,0.17]
[1729700266296,0.075726,66077.0,66076.0,0.17]
[1729700266500,0.075729,66074.0,66073.0,0.17]
[1729700266792,0.28568,66085.0,66068.0,0.0498698]
[1729700266793,0.07572,66082.0,66068.0,0.0022698]
[1729700266996,0.075735,66069.0,66068.0,0.0022698]
[1729700267390,0.075735,66069.0,66068.0,0.1722698]
[1729700267695,0.075731,66072.0,66068.0,0.0022698]
[1729700267894,0.075727,66076.0,66071.0,0.17]
[1729700268091,0.07573,66074.0,66071.0,0.17]
[1729700268281,0.11568,66080.0,66071.0,0.17]
[1729700268487,0.075731,66073.0,66071.0,0.17]
[1729700271196,0.17,66074.0,66053.0,0.0549]
[1729700271389,0.11568,66080.0,66053.0,0.0549]
[1729700271390,0.075752,66054.0,66053.0,0.0549]
[1729700271586,0.075741,66064.0,66053.0,0.0549]
[1729700271587,0.075748,66058.0,66053.0,0.67906]
[1729700271790,0.11572,66067.0,66053.0,0.67906]
[1729700271791,0.075745,66061.0,66057.0,0.17]
[1729700271996,0.075745,66061.0,66060.0,0.17]
[1729700272402,0.09200441,66063.0,66060.0,0.17]
[1729700272598,0.0434,66065.0,66060.0,0.17]
[1729700272793,0.0598453,66065.0,66060.0,0.17]
[1729700272999,0.075741,66064.0,66060.0,0.17]
[1729700273188,0.0598453,66065.0,66060.0,0.17]
[1729700273391,0.075742,66063.0,66060.0,0.17]
[1729700273594,0.0598453,66065.0,66060.0,0.17]
[1729700273995,0.075741,66064.0,66060.0,0.17]
[1729700274494,0.075742,66063.0,66060.0,0.17]
[1729700274694,0.075741,66064.0,66060.0,0.17]
[1729700274899,0.0164453,66065.0,66060.0,0.17]
[1729700275098,0.07574,66065.0,66060.0,0.17]
[1729700275300,0.075738,66067.0,66060.0,0.17]
[1729700275700,0.06143688,66071.0,66060.0,0.17]
[1729700275902,0.06143688,66071.0,66055.0,0.0458]
[1729700275903,0.0465,66074.0,66068.0,0.17]
[1729700276202,0.075731,66073.0,66065.0,0.17]
[1729700276401,0.2165,66074.0,66065.0,0.17]
[1729700276595,0.075732,66072.0,66065.0,0.17]
[1729700276907,0.075731,66073.0,66065.0,0.17]
[1729700277608,0.17,66074.0,66068.0,0.17]
[1729700277905,0.07572,66083.0,66074.0,0.075729]
[1729700278207,0.0446,66085.0,66082.0,0.17]
[1729700278507,0.01636301,66085.0,66082.0,0.17]
[1729700278699,0.0472,66090.0,66082.0,0.17]
[1729700278901,0.0457,66093.0,66088.0,0.17]
[1729700279303,0.07571,66091.0,66084.0,0.17]
[1729700279503,0.2157,66093.0,66081.0,0.17]
[1729700279504,0.17,66089.0,66081.0,0.17]
[1729700280097,0.17,66085.0,66077.0,0.17]
[1729700280302,0.245722,66081.0,66075.0,0.0475]
[1729700280592,0.075724,66079.0,66075.0,0.0475]
[1729700280798,0.075724,66079.0,66074.0,0.00227001]
[1729700280799,0.075727,66076.0,66074.0,0.00227001]
[1729700281202,0.075726,66077.0,66074.0,0.00227001]
[1729700281407,0.17,66081.0,66074.0,0.00227001]
[1729700281591,0.075728,66075.0,66074.0,0.00227001]
[1729700282504,0.11572,66084.0,66075.0,0.075728]
[1729700282705,0.245709,66092.0,66080.0,0.17]
[1729700282911,0.11572,66091.0,66080.0,0.17]
[1729700283104,0.075721,66081.0,66074.0,0.07799901]
[1729700283406,0.075718,66084.0,66077.0,0.17]
[1729700283597,0.17,66088.0,66077.0,0.17]
[1729700283801,0.07572,66083.0,66077.0,0.17]
[1729700284502,0.075715,66087.0,66080.0,0.17]
[1729700284697,0.17,66091.0,66080.0,0.17]
[1729700284899,0.245696,66103.0,66088.0,0.17]
[1729700285100,0.1229,66099.0,66098.0,0.17]
[1729700285311,0.06320968,66099.0,66098.0,0.17]
[1729700285496,0.01600968,66099.0,66098.0,0.17]
[1729700285699,0.125199,66101.0,66098.0,0.17]
[1729700285909,0.075698,66101.0,66098.0,0.17]
[1729700286101,0.075699,66100.0,66098.0,0.17]
[1729700286408,0.075699,66100.0,66096.0,0.26]
[1729700287000,0.01632577,66102.0,66096.0,0.26]
[1729700287205,0.0455,66110.0,66100.0,0.26]
[1729700287411,0.01655925,66110.0,66107.0,0.26]
[1729700287715,0.26,66119.0,66107.0,0.26]
[1729700287716,0.075685,66113.0,66107.0,0.26]
[1729700288107,0.075686,66112.0,66103.0,0.26]
[1729700288303,0.11572,66116.0,66103.0,0.26]
[1729700288614,0.075686,66113.0,66103.0,0.26]
[1729700288915,0.075686,66112.0,66103.0,0.26]
[1729700289710,0.26,66111.0,66097.0,0.06026753]
[1729700289908,0.26,66106.0,66095.0,0.06026753]
[1729700290106,0.26,66106.0,66093.0,0.32026753]
[1729700290301,0.26,66106.0,66093.0,0.26]
[1729700290302,0.075696,66103.0,66093.0,0.26]
[1729700290511,0.075697,66102.0,66093.0,0.26]
[1729700290713,0.075697,66103.0,66093.0,0.335706]
[1729700290913,0.075699,66101.0,66093.0,0.26]
[1729700291115,0.26,66109.0,66093.0,0.26]
[1729700291310,0.0757,66100.0,66093.0,0.26]
[1729700291514,0.26,66109.0,66093.0,0.26]
[1729700291814,0.075701,66099.0,66093.0,0.26]
[1729700292315,0.075703,66097.0,66093.0,0.26]
[1729700292707,0.075698,66101.0,66093.0,0.335707]
[1729700293124,0.0757,66100.0,66093.0,0.335707]
[1729700293418,0.0757,66100.0,66094.0,0.075706]
[1729700293619,0.37564,66109.0,66097.0,0.26]
[1729700293815,0.075701,66099.0,66097.0,0.26]
[1729700294015,0.075696,66103.0,66097.0,0.26]
[1729700294318,0.11564,66110.0,66097.0,0.335703]
[1729700294911,0.075694,66105.0,66098.0,0.075701]
[1729700295112,0.075689,66109.0,66102.0,0.26]
[1729700295311,0.07569,66108.0,66102.0,0.335696]
[1729700295617,0.075691,66108.0,66102.0,0.335696]
[1729700295810,0.11564,66115.0,66102.0,0.26]
[1729700296016,0.075692,66107.0,66102.0,0.26]
[1729700296213,0.11564,66115.0,66102.0,0.26]
[1729700296418,0.11564,66115.0,66112.0,0.26]
[1729700296419,0.075684,66114.0,66112.0,0.26]
[1729700297020,0.075684,66113.0,66112.0,0.26]
[1729700297323,0.075684,66113.0,66108.0,0.0453]
[1729700297324,0.11564,66120.0,66108.0,0.3053]
[1729700297526,0.075683,66115.0,66112.0,0.26]
[1729700298327,0.075683,66115.0,66108.0,0.12099]
[1729700298328,0.075684,66113.0,66108.0,0.0453]
[1729700298512,0.07568,66117.0,66108.0,0.0453]
[1729700298716,0.26,66117.0,66102.0,0.307]
[1729700298908,0.075694,66105.0,66098.0,0.00226928]
[1729700299323,0.26,66104.0,66098.0,0.00226928]
[1729700299513,0.11564,66117.0,66098.0,0.00226928]
[1729700299514,0.075696,66103.0,66098.0,0.00226928]
[1729700299711,0.075692,66106.0,66098.0,0.26226928]
[1729700300013,0.075693,66106.0,66102.0,0.26]
[1729700300217,0.075685,66113.0,66102.0,0.26]
[1729700300412,0.26,66113.0,66098.0,0.26226928]
[1729700300616,0.075696,66104.0,66098.0,0.26226928]
[1729700301413,0.26,66113.0,66098.0,0.26226928]
[1729700301922,0.075697,66103.0,66098.0,0.26226928]
[1729700302122,0.03780468,66103.0,66098.0,0.26226928]
[1729700302329,0.075692,66107.0,66098.0,0.26226928]
[1729700302617,0.11564,66117.0,66102.0,0.26]
[1729700302820,0.07569,66108.0,66102.0,0.26]
[1729700303122,0.07569,66108.0,66098.0,0.00226928]
[1729700303123,0.06447691,66118.0,66107.0,0.26]
[1729700303326,0.11564,66117.0,66113.0,0.26]
[1729700303823,0.01597691,66118.0,66113.0,0.26]
[1729700304017,0.11564,66122.0,66113.0,0.26]
[1729700304417,0.075681,66116.0,66113.0,0.26]
[1729700305332,0.11564,66122.0,66113.0,0.26]
[1729700305333,0.07568,66117.0,66113.0,0.26]
[1729700305627,0.0495,66123.0,66113.0,0.26]
[1729700305628,0.18133534,66123.0,66113.0,0.26]
[1729700305923,0.075682,66116.0,66113.0,0.26]
[1729700306122,0.18133534,66123.0,66109.0,0.26]
[1729700306326,0.18133534,66123.0,66106.0,0.06026753]
[1729700306327,0.17,66117.0,66107.0,0.17]
[1729700306526,0.17,66113.0,66103.0,0.23026753]
[1729700306712,0.17,66113.0,66102.0,0.075697]
[1729700306713,0.17,66118.0,66107.0,0.17]
[1729700307117,0.075682,66115.0,66111.0,0.17]
[1729700307325,0.12252,66120.0,66114.0,0.17]
[1729700307711,0.06569534,66123.0,66114.0,0.17]
[1729700307712,0.075674,66122.0,66114.0,0.17]
[1729700307913,0.18821534,66123.0,66114.0,0.17]
[1729700308420,0.075677,66120.0,66114.0,0.17]
[1729700308931,0.18821534,66123.0,66118.0,0.17]
[1729700308932,0.01619534,66123.0,66118.0,0.17]
[1729700309233,0.046,66126.0,66118.0,0.17]
[1729700309922,0.12252,66130.0,66123.0,0.17]
[1729700310117,0.245665,66131.0,66112.0,0.0473]
[1729700310118,0.121762,66133.0,66128.0,0.17]
[1729700310426,0.121762,66133.0,66112.0,0.122985]
[1729700310427,0.06214027,66133.0,66132.0,0.17]
[1729700310731,0.01604027,66133.0,66132.0,0.17]
[1729700310927,0.12252,66141.0,66132.0,0.17]
[1729700311113,0.12252,66141.0,66122.0,0.15396753]
[1729700311114,0.0921,66142.0,66135.0,0.17]
[1729700311317,0.0921,66142.0,66125.0,0.17]
[1729700311318,0.0921,66142.0,66139.0,0.17]
[1729700311518,0.10870779,66142.0,66139.0,0.17]
[1729700312326,0.01660779,66142.0,66139.0,0.17]
[1729700312631,0.094,66149.0,66139.0,0.17]
[1729700312929,0.075647,66146.0,66139.0,0.17]
[1729700314022,0.17,66147.0,66136.0,0.17]
[1729700314332,0.17,66147.0,66126.0,0.06163445]
[1729700314333,0.245655,66139.0,66132.0,0.17]
[1729700314733,0.075655,66139.0,66132.0,0.17]
[1729700315033,0.17,66143.0,66135.0,0.17]
[1729700315229,0.075653,66141.0,66135.0,0.17]
[1729700315733,0.18630139,66149.0,66139.0,0.17]
[1729700315734,0.17,66147.0,66139.0,0.17]
[1729700315935,0.17,66147.0,66135.0,0.17]
[1729700316134,0.31658239,66149.0,66135.0,0.17]
[1729700316135,0.075655,66139.0,66135.0,0.17]
[1729700317941,0.075659,66135.0,66131.0,0.17]
[1729700318433,0.17,66135.0,66127.0,0.06026753]
[1729700318634,0.17,66146.0,66126.0,0.0455]
[1729700318635,0.075668,66127.0,66126.0,0.0455]
[1729700318831,0.17,66132.0,66126.0,0.0455]
[1729700319036,0.093,66134.0,66127.0,0.17]
[1729700319431,0.075664,66131.0,66127.0,0.17]
[1729700319942,0.093,66134.0,66127.0,0.17]
[1729700319943,0.075665,66130.0,66127.0,0.17]
[1729700320242,0.10964016,66134.0,66127.0,0.17]
[1729700320538,0.10964016,66134.0,66126.0,0.0455]
[1729700320539,0.075668,66127.0,66126.0,0.0455]
[1729700320742,0.10964016,66134.0,66126.0,0.0455]
[1729700320932,0.10964016,66134.0,66128.0,0.17]
[1729700320933,0.075666,66129.0,66128.0,0.17]
[1729700321431,0.10964016,66134.0,66128.0,0.17]
[1729700321738,0.075662,66133.0,66128.0,0.17]
[1729700321932,0.10964016,66134.0,66128.0,0.17]
[1729700322135,0.075666,66129.0,66128.0,0.17]
[1729700324332,0.075666,66129.0,66122.0,0.0937]
[1729700324333,0.075667,66128.0,66122.0,0.06026753]
[1729700324636,0.075676,66120.0,66119.0,0.06026753]
[1729700324942,0.23992016,66134.0,66120.0,0.17]
[1729700324943,0.40992016,66134.0,66120.0,0.17]
[1729700325141,0.075675,66122.0,66120.0,0.23023978]
[1729700325534,0.075675,66121.0,66120.0,0.23023978]
[1729700327244,0.075675,66121.0,66120.0,0.17]
[1729700328541,0.075673,66124.0,66120.0,0.17]
[1729700328758,0.075666,66130.0,66125.0,0.07567]
[1729700329051,0.075665,66130.0,66129.0,0.17]
[1729700329437,0.01643993,66132.0,66129.0,0.23023978]
[1729700329645,0.075645,66148.0,66131.0,0.17]
[1729700329646,0.13028,66143.0,66131.0,0.17]
[1729700329848,0.075656,66138.0,66137.0,0.17]
[1729700330854,0.17,66138.0,66130.0,0.06023978]
[1729700331044,0.17,66138.0,66126.0,0.0945]
[1729700331045,0.075664,66132.0,66127.0,0.17]
[1729700331240,0.075666,66130.0,66127.0,0.06023978]
[1729700331440,0.262,66137.0,66127.0,0.23023978]
[1729700331647,0.075658,66136.0,66127.0,0.17]
[1729700331848,0.262,66137.0,66127.0,0.23023978]
[1729700332045,0.092,66137.0,66131.0,0.17]
[1729700332247,0.075663,66132.0,66131.0,0.17]
[1729700335741,0.075662,66133.0,66131.0,0.17]
[1729700336048,0.075666,66129.0,66127.0,0.06023978]
[1729700336751,0.075667,66128.0,66127.0,0.06023978]
[1729700337150,0.075667,66128.0,66123.0,0.07508189]
[1729700337354,0.075667,66128.0,66122.0,0.17]
[1729700337355,0.075667,66128.0,66122.0,0.26174257]
[1729700337548,0.245658,66136.0,66122.0,0.26174257]
[1729700337549,0.075669,66127.0,66122.0,0.26174257]
[1729700338269,0.245658,66136.0,66124.0,0.075672]
[1729700338561,0.075667,66129.0,66128.0,0.06044412]
[1729700339348,0.075667,66129.0,66125.0,0.06044412]
[1729700339650,0.075671,66125.0,66124.0,0.06044412]
[1729700340046,0.075671,66125.0,66120.0,0.07508189]
[1729700340252,0.075673,66123.0,66122.0,0.0604807]
[1729700340443,0.075674,66122.0,66120.0,0.0604807]
[1729700340641,0.075674,66122.0,66117.0,0.0022686]
[1729700340642,0.075679,66118.0,66117.0,0.0022686]
[1729700340947,0.245679,66118.0,66117.0,0.0022686]
[1729700342762,0.075692,66106.0,66105.0,0.0604807]
[1729700342963,0.245693,66106.0,66098.0,0.0604807]
[1729700343146,0.17,66101.0,66094.0,0.0604807]
[1729700343463,0.0974,66105.0,66091.0,0.00226951]
[1729700343464,0.075708,66093.0,66091.0,0.00226951]
[1729700343762,0.075708,66092.0,66091.0,0.00226951]
[1729700344348,0.075708,66092.0,66082.0,0.0604807]
[1729700344349,0.62392,66092.0,66082.0,0.0604807]
[1729700344548,0.17,66085.0,66077.0,0.0604807]
[1729700344755,0.07572,66082.0,66076.0,0.0604807]
[1729700345052,0.07572,66082.0,66077.0,0.17]
[1729700345356,0.075721,66081.0,66077.0,0.17]
[1729700345543,0.0453,66095.0,66071.0,0.0604807]
[1729700345544,0.17,66082.0,66071.0,0.0604807]
[1729700345744,0.245725,66078.0,66070.0,0.17]
[1729700345949,0.075726,66077.0,66070.0,0.17]
[1729700346251,0.13072,66083.0,66073.0,0.17]
[1729700346447,0.075725,66078.0,66073.0,0.17]
[1729700346647,0.13072,66083.0,66073.0,0.17]
[1729700346851,0.075729,66074.0,66073.0,0.17]
[1729700347250,0.14678538,66083.0,66073.0,0.17]
[1729700347758,0.17,66081.0,66073.0,0.17]
[1729700348061,0.075728,66075.0,66073.0,0.17]
[1729700348355,0.075728,66075.0,66069.0,0.17]
[1729700348752,0.17,66077.0,66068.0,0.1003]
[1729700348954,0.07573,66074.0,66070.0,0.17]
[1729700349556,0.17,66081.0,66070.0,0.17]
[1729700349755,0.075727,66077.0,66070.0,0.17]
[1729700350060,0.17,66081.0,66070.0,0.17]
[1729700350061,0.075727,66076.0,66070.0,0.17]
[1729700350252,0.075728,66075.0,66070.0,0.17]
[1729700350757,0.17,66078.0,66070.0,0.17]
[1729700351060,0.075733,66071.0,66068.0,0.1003]
[1729700351248,0.075733,66071.0,66068.0,0.0549]
[1729700352059,0.075734,66070.0,66068.0,0.0549]
[1729700352764,0.03782044,66070.0,66068.0,0.0549]
[1729700353660,0.075731,66073.0,66068.0,0.0549]
[1729700353869,0.07573,66073.0,66068.0,0.0549]
[1729700354067,0.075734,66070.0,66068.0,0.0549]
[1729700354370,0.24573,66074.0,66068.0,0.0549]
[1729700354659,0.07573,66073.0,66068.0,0.0549]
[1729700355165,0.01657387,66074.0,66068.0,0.0549]
[1729700355354,0.13076,66076.0,66068.0,0.0549]
[1729700355355,0.075734,66070.0,66068.0,0.0549]
[1729700356557,0.17,66081.0,66068.0,0.0549]
[1729700356866,0.075726,66077.0,66072.0,0.17]
[1729700357061,0.01660001,66081.0,66076.0,0.17]
[1729700357261,0.13076,66089.0,66080.0,0.17]
[1729700357463,0.13076,66089.0,66084.0,0.17]
[1729700357653,0.075716,66086.0,66080.0,0.17]
[1729700357854,0.206471,66090.0,66083.0,0.17]
[1729700358059,0.14734694,66090.0,66087.0,0.17]
[1729700358261,0.075715,66087.0,66083.0,0.17]
[1729700359059,0.075719,66083.0,66076.0,0.0454]
[1729700359266,0.17,66079.0,66068.0,0.0549]
[1729700359565,0.13076,66085.0,66078.0,0.17]
[1729700359763,0.09229794,66090.0,66084.0,0.17]
[1729700359970,0.13076,66093.0,66084.0,0.17]
[1729700360161,0.07571,66092.0,66084.0,0.17]
[1729700360362,0.17,66091.0,66084.0,0.17]
[1729700360767,0.075709,66092.0,66085.0,0.0464]
[1729700360962,0.07571,66091.0,66085.0,0.0464]
[1729700361161,0.18666371,66095.0,66085.0,0.0464]
[1729700361362,0.075712,66090.0,66085.0,0.0464]
[1729700361561,0.245709,66092.0,66085.0,0.0464]
[1729700361758,0.17,66092.0,66085.0,0.0464]
[1729700361962,0.075711,66090.0,66085.0,0.0464]
[1729700362569,0.245709,66092.0,66085.0,0.0464]
[1729700362773,0.17,66092.0,66085.0,0.0464]
[1729700363071,0.01666371,66095.0,66085.0,0.0464]
[1729700363072,0.17,66088.0,66085.0,0.0464]
[1729700365064,0.075715,66086.0,66085.0,0.0464]
[1729700366066,0.18625962,66088.0,66085.0,0.0464]
[1729700366266,0.26197262,66088.0,66085.0,0.0464]
[1729700367266,0.075715,66087.0,66085.0,0.0464]
[1729700367971,0.18625962,66088.0,66079.0,0.04506144]
[1729700368175,0.075719,66083.0,66080.0,0.04515248]
[1729700368376,0.075721,66082.0,66080.0,0.04515248]
[1729700369272,0.075721,66082.0,66077.0,0.17]
[1729700369273,0.17,66089.0,66077.0,0.2451024]
[1729700369478,0.499901,66099.0,66087.0,0.04523183]
[1729700369479,0.30076,66094.0,66087.0,0.04523183]
[1729700369675,0.075713,66088.0,66084.0,0.2303091]
[1729700369877,0.075713,66088.0,66084.0,0.0603091]
[1729700370073,0.17,66090.0,66084.0,0.0603091]
[1729700370279,0.01635923,66095.0,66089.0,0.04523112]
[1729700370469,0.075699,66101.0,66094.0,0.17]
[1729700370669,0.075699,66101.0,66100.0,0.0452318]
[1729700370866,0.09216166,66101.0,66100.0,0.0452318]
[1729700371278,0.01646266,66101.0,66100.0,0.0452318]
[1729700371475,0.075691,66107.0,66100.0,0.0488]
[1729700371793,0.075691,66107.0,66104.0,0.04526031]
[1729700371982,0.075691,66107.0,66105.0,0.04526031]
[1729700372175,0.075691,66107.0,66103.0,0.04526031]
[1729700372572,0.075691,66107.0,66100.0,0.10914709]
[1729700372573,0.17,66112.0,66102.0,0.06034709]
[1729700372767,0.07569,66108.0,66105.0,0.06034709]
[1729700372985,0.17,66115.0,66107.0,0.17]
[1729700373180,0.075685,66113.0,66110.0,0.0452898]
[1729700373389,0.075687,66111.0,66110.0,0.0452898]
[1729700373685,0.245687,66111.0,66110.0,0.0452898]
[1729700373884,0.245687,66111.0,66101.0,0.0528]
[1729700373885,0.075688,66110.0,66109.0,0.0452898]
[1729700374183,0.245688,66110.0,66109.0,0.0452898]
[1729700374386,0.075689,66109.0,66108.0,0.0452898]
[1729700375276,0.17,66110.0,66106.0,0.0452898]
[1729700375484,0.075691,66107.0,66106.0,0.0452898]
[1729700376084,0.075695,66105.0,66102.0,0.06034709]
[1729700376280,0.075695,66104.0,66101.0,0.11314709]
[1729700377472,0.075695,66104.0,66101.0,0.0528]
[1729700377669,0.075697,66103.0,66101.0,0.0528]
[1729700377883,0.18673171,66110.0,66101.0,0.0528]
[1729700378086,0.075694,66105.0,66104.0,0.04520932]
[1729700378685,0.075695,66104.0,66103.0,0.04520932]
[1729700379179,0.18673171,66110.0,66103.0,0.04520932]
[1729700379491,0.075692,66107.0,66103.0,0.04520932]
[1729700379677,0.18673171,66110.0,66103.0,0.04520932]
[1729700379678,0.075693,66106.0,66103.0,0.04520932]
[1729700379990,0.18673171,66110.0,66103.0,0.04520932]
[1729700380178,0.075693,66106.0,66103.0,0.04520932]
[1729700380774,0.18673171,66110.0,66103.0,0.04520932]
[1729700380990,0.075692,66107.0,66104.0,0.04520932]
[1729700381191,0.075694,66105.0,66103.0,0.04520932]
[1729700381380,0.075694,66105.0,66101.0,0.0528]
[1729700381381,0.075694,66105.0,66104.0,0.04520932]
[1729700382281,0.075694,66105.0,66102.0,0.06034709]
[1729700382682,0.075694,66105.0,66101.0,0.11314709]
[1729700382878,0.075694,66105.0,66102.0,0.06034709]
[1729700383080,0.18673171,66110.0,66101.0,0.11314709]
[1729700383389,0.17,66113.0,66107.0,0.04526556]
[1729700383585,0.07569,66108.0,66107.0,0.04526556]
[1729700383891,0.075686,66112.0,66107.0,0.04526556]
[1729700384202,0.01664512,66115.0,66111.0,0.075687]
[1729700384377,0.1837,66125.0,66114.0,0.17]
[1729700384580,0.075674,66122.0,66120.0,0.17]
[1729700384880,0.075675,66121.0,66118.0,0.04524572]
[1729700385081,0.075672,66125.0,66118.0,0.04524572]
[1729700385392,0.17,66126.0,66117.0,0.04524572]
[1729700385593,0.099,66128.0,66117.0,0.04524572]
[1729700385594,0.17,66122.0,66117.0,0.04524572]
[1729700386090,0.17,66122.0,66114.0,0.04524572]
[1729700386388,0.075682,66115.0,66114.0,0.04524572]
[1729700387088,0.11506394,66128.0,66114.0,0.04524572]
[1729700387089,0.17,66126.0,66114.0,0.04524572]
[1729700387389,0.11506394,66128.0,66118.0,0.17]
[1729700387591,0.075672,66124.0,66118.0,0.17]
[1729700387786,0.11506394,66128.0,66118.0,0.17]
[1729700388183,0.075675,66122.0,66118.0,0.17]
[1729700388385,0.11506394,66128.0,66118.0,0.17]
[1729700388386,0.075678,66119.0,66118.0,0.17]
[1729700388587,0.075681,66116.0,66115.0,0.04522691]
[1729700388888,0.075673,66123.0,66111.0,0.23034709]
[1729700388889,0.075683,66115.0,66113.0,0.04522691]
[1729700389088,0.075683,66115.0,66112.0,0.04522691]
[1729700389493,0.075684,66114.0,66113.0,0.04522691]
[1729700389795,0.075684,66113.0,66112.0,0.04522691]
[1729700390093,0.17,66116.0,66110.0,0.04522691]
[1729700390288,0.17,66116.0,66108.0,0.17]
[1729700390289,0.17,66116.0,66109.0,0.04522691]
[1729700390484,0.075682,66115.0,66109.0,0.04522691]
[1729700390684,0.075686,66112.0,66110.0,0.04522691]
[1729700390992,0.17,66116.0,66109.0,0.04522691]
[1729700391193,0.075687,66111.0,66109.0,0.04522691]
[1729700391798,0.075684,66114.0,66108.0,0.04522691]
[1729700391985,0.17,66120.0,66109.0,0.04522691]
[1729700392186,0.17,66120.0,66108.0,0.04522691]
[1729700392380,0.17,66120.0,66109.0,0.04522691]
[1729700392594,0.075687,66111.0,66109.0,0.04522691]
[1729700392796,0.18670232,66120.0,66108.0,0.04522691]
[1729700393091,0.18670232,66120.0,66104.0,0.07704778]
[1729700393092,0.17,66115.0,66106.0,0.04522691]
[1729700393291,0.075691,66108.0,66106.0,0.04522691]
[1729700394397,0.075691,66108.0,66107.0,0.04522691]
[1729700394893,0.075691,66108.0,66107.0,0.21522691]
[1729700395197,0.075686,66112.0,66107.0,0.17]
[1729700395401,0.0997,66114.0,66107.0,0.21522691]